[Event "*** Titled Tuesday Blitz"]
[Site "Chess.com"]
[Date "2021.02.09"]
[Round "8"]
[White "Orest_Vovk"]
[Black "elohunter1999"]
[Result "1-0"]
[WhiteElo "2427"]
[BlackElo "2636"]
[TimeControl "180+1"]
[EndTime "11:30:59 PST"]
[Termination "Orest_Vovk won on time"]

1. e4 {[%clk 0:03:00.9]} 1... d6 {[%clk 0:02:59.8]} 2. d4 {[%clk 0:02:56.2]}
2... Nf6 {[%clk 0:02:59.7]} 3. Bd3 {[%clk 0:02:55.6]} 3... e5 {[%clk 0:02:58.4]}
4. dxe5 {[%clk 0:02:55.2]} 4... dxe5 {[%clk 0:02:58.3]} 5. Nf3 {[%clk
0:02:55.4]} 5... Nbd7 {[%clk 0:02:58]} 6. O-O {[%clk 0:02:55.1]} 6... Be7 {[%clk
0:02:57.6]} 7. Nc3 {[%clk 0:02:54.7]} 7... c6 {[%clk 0:02:57.7]} 8. Bg5 {[%clk
0:02:52.5]} 8... O-O {[%clk 0:02:57.1]} 9. Qe2 {[%clk 0:02:50.3]} 9... Qc7
{[%clk 0:02:57.1]} 10. Bc4 {[%clk 0:02:49.2]} 10... b5 {[%clk 0:02:56.4]} 11.
Bb3 {[%clk 0:02:48.7]} 11... Nc5 {[%clk 0:02:56.6]} 12. h3 {[%clk 0:02:36.2]}
12... a5 {[%clk 0:02:39.3]} 13. a3 {[%clk 0:02:26.5]} 13... Nxb3 {[%clk
0:02:34]} 14. cxb3 {[%clk 0:02:27.4]} 14... Be6 {[%clk 0:02:34.5]} 15. Rac1
{[%clk 0:02:27.1]} 15... Qb8 {[%clk 0:02:16.7]} 16. Qc2 {[%clk 0:02:21.3]} 16...
Rc8 {[%clk 0:02:14.8]} 17. Nd1 {[%clk 0:02:11.2]} 17... Ra7 {[%clk 0:02:13]} 18.
Ne3 {[%clk 0:02:10]} 18... Rd7 {[%clk 0:02:11.3]} 19. Nf5 {[%clk 0:02:06.4]}
19... Bxf5 {[%clk 0:02:09.7]} 20. exf5 {[%clk 0:02:06.1]} 20... e4 {[%clk
0:02:08.1]} 21. Bxf6 {[%clk 0:02:01.7]} 21... exf3 {[%clk 0:02:05.6]} 22. Bxe7
{[%clk 0:02:01.7]} 22... Rxe7 {[%clk 0:02:05.1]} 23. g3 {[%clk 0:01:55.9]} 23...
Qe5 {[%clk 0:01:19.6]} 24. Qd3 {[%clk 0:01:38]} 24... Qe2 {[%clk 0:01:05.5]} 25.
Qd6 {[%clk 0:01:10.4]} 25... Rce8 {[%clk 0:00:26.3]} 26. Qxc6 {[%clk 0:00:53]}
26... Qxb2 {[%clk 0:00:26]} 27. Qxb5 {[%clk 0:00:44.7]} 27... Qxa3 {[%clk
0:00:25.6]} 28. Qc5 {[%clk 0:00:21.1]} 28... Qxc5 {[%clk 0:00:18.2]} 29. Rxc5
{[%clk 0:00:22]} 29... Re5 {[%clk 0:00:17.1]} 30. Rxe5 {[%clk 0:00:19]} 30...
Rxe5 {[%clk 0:00:18]} 31. g4 {[%clk 0:00:19.5]} 31... Rb5 {[%clk 0:00:17.7]} 32.
Ra1 {[%clk 0:00:19.3]} 32... h5 {[%clk 0:00:17.6]} 33. Kh2 {[%clk 0:00:18.8]}
33... h4 {[%clk 0:00:16.6]} 34. Ra3 {[%clk 0:00:17.7]} 34... Kh7 {[%clk
0:00:12]} 35. Kg1 {[%clk 0:00:14.8]} 35... Kh6 {[%clk 0:00:12]} 36. Kf1 {[%clk
0:00:14.5]} 36... a4 {[%clk 0:00:11.5]} 37. Rxa4 {[%clk 0:00:13.2]} 37... Rxb3
{[%clk 0:00:11.7]} 38. Ra1 {[%clk 0:00:13.8]} 38... Kg5 {[%clk 0:00:10.9]} 39.
Re1 {[%clk 0:00:11.9]} 39... Rb2 {[%clk 0:00:10.7]} 40. Kg1 {[%clk 0:00:11]}
40... Re2 {[%clk 0:00:10.7]} 41. Rb1 {[%clk 0:00:09.6]} 41... g6 {[%clk
0:00:10.6]} 42. fxg6 {[%clk 0:00:09.1]} 42... Kxg6 {[%clk 0:00:11.1]} 43. Rb3
{[%clk 0:00:08.4]} 43... Re1+ {[%clk 0:00:07.7]} 44. Kh2 {[%clk 0:00:08.7]}
44... Rf1 {[%clk 0:00:07.6]} 45. Rxf3 {[%clk 0:00:08.9]} 45... f6 {[%clk
0:00:07.8]} 46. Rf5 {[%clk 0:00:08.6]} 46... Ra1 {[%clk 0:00:07.4]} 47. Rh5
{[%clk 0:00:08.1]} 47... Ra2 {[%clk 0:00:06.9]} 48. Kg2 {[%clk 0:00:08.4]} 48...
Rb2 {[%clk 0:00:06]} 49. Rxh4 {[%clk 0:00:08.6]} 49... f5 {[%clk 0:00:06.5]} 50.
Rh5 {[%clk 0:00:09]} 50... f4 {[%clk 0:00:03.9]} 51. Rf5 {[%clk 0:00:08.8]}
51... Rb4 {[%clk 0:00:04.3]} 52. Kf3 {[%clk 0:00:09.2]} 52... Rb3+ {[%clk
0:00:04.4]} 53. Kxf4 {[%clk 0:00:09.6]} 53... Rxh3 {[%clk 0:00:05.1]} 54. f3
{[%clk 0:00:10.1]} 54... Rh1 {[%clk 0:00:05.3]} 55. Rg5+ {[%clk 0:00:10]} 55...
Kf6 {[%clk 0:00:05.8]} 56. Ra5 {[%clk 0:00:10.9]} 56... Rb1 {[%clk 0:00:05.9]}
57. Ra6+ {[%clk 0:00:11.2]} 57... Kg7 {[%clk 0:00:06.4]} 58. g5 {[%clk 0:00:11]}
58... Rb4+ {[%clk 0:00:06.5]} 59. Kf5 {[%clk 0:00:11.1]} 59... Rb5+ {[%clk
0:00:06.9]} 60. Kg4 {[%clk 0:00:11.3]} 60... Rb4+ {[%clk 0:00:07.4]} 61. f4
{[%clk 0:00:11.6]} 61... Rc4 {[%clk 0:00:08]} 62. Rb6 {[%clk 0:00:09.9]} 62...
Ra4 {[%clk 0:00:07.7]} 63. Rb5 {[%clk 0:00:09.8]} 63... Kg6 {[%clk 0:00:07.1]}
64. Rd5 {[%clk 0:00:09.2]} 64... Rb4 {[%clk 0:00:07.1]} 65. Rd6+ {[%clk
0:00:09.4]} 65... Kg7 {[%clk 0:00:07.3]} 66. Re6 {[%clk 0:00:09.3]} 66... Ra4
{[%clk 0:00:06.5]} 67. Kf5 {[%clk 0:00:09.3]} 67... Ra5+ {[%clk 0:00:06.9]} 68.
Re5 {[%clk 0:00:09.6]} 68... Ra7 {[%clk 0:00:07.5]} 69. Rb5 {[%clk 0:00:06.2]}
69... Rc7 {[%clk 0:00:07.5]} 70. g6 {[%clk 0:00:06]} 70... Ra7 {[%clk
0:00:06.3]} 71. Kg5 {[%clk 0:00:06.2]} 71... Rd7 {[%clk 0:00:05.2]} 72. f5
{[%clk 0:00:06.4]} 72... Rd8 {[%clk 0:00:03.4]} 73. f6+ {[%clk 0:00:06.3]} 73...
Kg8 {[%clk 0:00:03.8]} 74. Kh6 {[%clk 0:00:06.2]} 74... Kh8 {[%clk 0:00:02.4]}
75. g7+ {[%clk 0:00:05.2]} 75... Kg8 {[%clk 0:00:02.9]} 76. Kg6 {[%clk
0:00:05.5]} 1-0

[Event "*** Titled Tuesday Blitz"]
[Site "Chess.com"]
[Date "2021.02.09"]
[Round "8"]
[White "elextranjero00"]
[Black "jens1102"]
[Result "1-0"]
[WhiteElo "2598"]
[BlackElo "2454"]
[TimeControl "180+1"]
[EndTime "11:31:11 PST"]
[Termination "elextranjero00 won by checkmate"]

1. Nf3 {[%clk 0:03:00.9]} 1... d5 {[%clk 0:02:58.9]} 2. e3 {[%clk 0:03:00.5]}
2... Bd7 {[%clk 0:02:58.2]} 3. c4 {[%clk 0:02:58.7]} 3... dxc4 {[%clk
0:02:57.5]} 4. Bxc4 {[%clk 0:02:58.2]} 4... Nf6 {[%clk 0:02:57.7]} 5. Nc3 {[%clk
0:02:55.9]} 5... e6 {[%clk 0:02:57.8]} 6. O-O {[%clk 0:02:55.4]} 6... c5 {[%clk
0:02:58.2]} 7. d4 {[%clk 0:02:54.4]} 7... cxd4 {[%clk 0:02:57.9]} 8. exd4 {[%clk
0:02:54.2]} 8... Bd6 {[%clk 0:02:53.5]} 9. Bg5 {[%clk 0:02:51.3]} 9... O-O
{[%clk 0:02:52]} 10. d5 {[%clk 0:02:45.7]} 10... Qc7 {[%clk 0:02:16.9]} 11. dxe6
{[%clk 0:02:35.2]} 11... Bxe6 {[%clk 0:02:09.2]} 12. Bxe6 {[%clk 0:02:33.6]}
12... fxe6 {[%clk 0:02:10.1]} 13. Nb5 {[%clk 0:02:30.8]} 13... Qc6 {[%clk
0:01:59.7]} 14. Nxd6 {[%clk 0:02:24.6]} 14... Rd8 {[%clk 0:01:59.8]} 15. Rc1
{[%clk 0:02:10.4]} 15... Qxd6 {[%clk 0:01:59.1]} 16. Qxd6 {[%clk 0:02:09.1]}
16... Rxd6 {[%clk 0:01:59.5]} 17. Rc8+ {[%clk 0:02:09.6]} 17... Kf7 {[%clk
0:01:58.7]} 18. Bf4 {[%clk 0:02:00.5]} 18... Rb6 {[%clk 0:01:43.5]} 19. b3
{[%clk 0:01:40.5]} 19... Nfd7 {[%clk 0:01:39.8]} 20. Ne5+ {[%clk 0:01:26.6]}
20... Nxe5 {[%clk 0:01:16.4]} 21. Bxe5 {[%clk 0:01:26.6]} 21... Nc6 {[%clk
0:01:08.7]} 22. Rxa8 {[%clk 0:01:25.7]} 22... Nxe5 {[%clk 0:01:09.1]} 23. Rxa7
{[%clk 0:01:24.9]} 23... Kf6 {[%clk 0:01:07.8]} 24. Rd1 {[%clk 0:01:18.8]} 24...
g5 {[%clk 0:01:06.6]} 25. Kf1 {[%clk 0:01:18.3]} 25... h5 {[%clk 0:01:05]} 26.
Ke2 {[%clk 0:01:09]} 26... g4 {[%clk 0:01:04.7]} 27. Rd4 {[%clk 0:01:07.8]}
27... Nc6 {[%clk 0:01:01.8]} 28. Rf4+ {[%clk 0:00:59.2]} 28... Ke5 {[%clk
0:00:51.2]} 29. Raa4 {[%clk 0:00:58.5]} 29... Ne7 {[%clk 0:00:46.5]} 30. Rae4+
{[%clk 0:00:55.6]} 30... Kd5 {[%clk 0:00:42.1]} 31. Rd4+ {[%clk 0:00:44.5]}
31... Ke5 {[%clk 0:00:38.9]} 32. Rfe4+ {[%clk 0:00:42.5]} 32... Kf5 {[%clk
0:00:37.7]} 33. f3 {[%clk 0:00:39.6]} 33... gxf3+ {[%clk 0:00:34.3]} 34. Kxf3
{[%clk 0:00:33.7]} 34... Nd5 {[%clk 0:00:34.1]} 35. g4+ {[%clk 0:00:28.1]} 35...
hxg4+ {[%clk 0:00:33]} 36. Rxg4 {[%clk 0:00:29]} 36... Rc6 {[%clk 0:00:30.1]}
37. Rc4 {[%clk 0:00:26.1]} 37... Ra6 {[%clk 0:00:29.7]} 38. a4 {[%clk
0:00:20.5]} 38... Ra8 {[%clk 0:00:27.1]} 39. Rh4 {[%clk 0:00:19.4]} 39... Rg8
{[%clk 0:00:24.9]} 40. Rh5+ {[%clk 0:00:12.8]} 40... Kf6 {[%clk 0:00:24.7]} 41.
Kf2 {[%clk 0:00:06.4]} 41... b6 {[%clk 0:00:20.7]} 42. Rh3 {[%clk 0:00:06.2]}
42... Rg5 {[%clk 0:00:19.6]} 43. Rf3+ {[%clk 0:00:06.7]} 43... Ke5 {[%clk
0:00:19.3]} 44. h4 {[%clk 0:00:06.2]} 44... Rh5 {[%clk 0:00:17.2]} 45. Rg4
{[%clk 0:00:05.8]} 45... Kd6 {[%clk 0:00:16.1]} 46. Kg3 {[%clk 0:00:04.7]} 46...
Rh8 {[%clk 0:00:14.6]} 47. Rg5 {[%clk 0:00:04.6]} 47... Rh7 {[%clk 0:00:11.5]}
48. h5 {[%clk 0:00:04.8]} 48... Ne7 {[%clk 0:00:12]} 49. Kg4 {[%clk 0:00:04.8]}
49... Nf5 {[%clk 0:00:12.2]} 50. Rfxf5 {[%clk 0:00:04.8]} 50... exf5+ {[%clk
0:00:12.9]} 51. Kxf5 {[%clk 0:00:05.7]} 51... Ke7 {[%clk 0:00:11.3]} 52. Kg6
{[%clk 0:00:05.7]} 52... Rh8 {[%clk 0:00:09.2]} 53. Re5+ {[%clk 0:00:05.8]}
53... Kf8 {[%clk 0:00:08.9]} 54. Re6 {[%clk 0:00:04.6]} 54... Rg8+ {[%clk
0:00:09.5]} 55. Kf6 {[%clk 0:00:04.8]} 55... Rg1 {[%clk 0:00:09.1]} 56. Rxb6
{[%clk 0:00:04.7]} 56... Rf1+ {[%clk 0:00:09.7]} 57. Ke5 {[%clk 0:00:04.3]}
57... Rh1 {[%clk 0:00:10]} 58. Kd5 {[%clk 0:00:03.8]} 58... Rxh5+ {[%clk
0:00:09.7]} 59. Kc4 {[%clk 0:00:04.4]} 59... Ke7 {[%clk 0:00:10.2]} 60. Rb5
{[%clk 0:00:04.2]} 60... Rh4+ {[%clk 0:00:10.3]} 61. Kc5 {[%clk 0:00:03.7]}
61... Kd7 {[%clk 0:00:10.6]} 62. Kb6 {[%clk 0:00:04.2]} 62... Kc8 {[%clk
0:00:10.7]} 63. a5 {[%clk 0:00:04.1]} 63... Rh6+ {[%clk 0:00:10.6]} 64. Kc5
{[%clk 0:00:04.4]} 64... Kc7 {[%clk 0:00:10.2]} 65. b4 {[%clk 0:00:03.9]} 65...
Rh5+ {[%clk 0:00:10.7]} 66. Kc4 {[%clk 0:00:04.4]} 66... Rh4+ {[%clk 0:00:11.1]}
67. Kb3 {[%clk 0:00:04.7]} 67... Kc6 {[%clk 0:00:09.8]} 68. Rc5+ {[%clk
0:00:04.2]} 68... Kb7 {[%clk 0:00:10.3]} 69. Ka4 {[%clk 0:00:05.1]} 69... Rh1
{[%clk 0:00:09.2]} 70. Rg5 {[%clk 0:00:05.6]} 70... Rh2 {[%clk 0:00:08.1]} 71.
Rg7+ {[%clk 0:00:05.5]} 71... Kb8 {[%clk 0:00:07.8]} 72. a6 {[%clk 0:00:04.2]}
72... Rh5 {[%clk 0:00:07.5]} 73. b5 {[%clk 0:00:04]} 73... Rh6 {[%clk
0:00:06.9]} 74. Ka5 {[%clk 0:00:04.1]} 74... Rh8 {[%clk 0:00:07.1]} 75. Rd7
{[%clk 0:00:03.5]} 75... Rg8 {[%clk 0:00:06.4]} 76. Rd5 {[%clk 0:00:03.6]} 76...
Rf8 {[%clk 0:00:06.4]} 77. Rc5 {[%clk 0:00:04.2]} 77... Rg8 {[%clk 0:00:06.3]}
78. b6 {[%clk 0:00:04.6]} 78... Rh8 {[%clk 0:00:06]} 79. a7+ {[%clk 0:00:04.8]}
79... Kb7 {[%clk 0:00:03.6]} 80. Rc7+ {[%clk 0:00:04.7]} 80... Ka8 {[%clk
0:00:04]} 81. Ka6 {[%clk 0:00:05.3]} 81... Rb8 {[%clk 0:00:02]} 82. Rc8 {[%clk
0:00:05.5]} 82... Rxc8 {[%clk 0:00:02.2]} 83. b7# {[%clk 0:00:06.4]} 1-0

[Event "*** Titled Tuesday Blitz"]
[Site "Chess.com"]
[Date "2021.02.09"]
[Round "8"]
[White "Anurag328"]
[Black "AttackSparrow"]
[Result "1-0"]
[WhiteElo "2643"]
[BlackElo "2479"]
[TimeControl "180+1"]
[EndTime "11:31:17 PST"]
[Termination "Anurag328 won by checkmate"]

1. Nf3 {[%clk 0:03:00.9]} 1... Nf6 {[%clk 0:02:59]} 2. c4 {[%clk 0:02:59.9]}
2... c5 {[%clk 0:02:56.7]} 3. g3 {[%clk 0:02:50.6]} 3... g6 {[%clk 0:02:54.2]}
4. Bg2 {[%clk 0:02:44.3]} 4... d6 {[%clk 0:02:54.2]} 5. d4 {[%clk 0:02:41.4]}
5... cxd4 {[%clk 0:02:55.1]} 6. Nxd4 {[%clk 0:02:42.3]} 6... Bg7 {[%clk
0:02:54.5]} 7. Nc3 {[%clk 0:02:42.9]} 7... h5 {[%clk 0:02:45]} 8. Bg5 {[%clk
0:02:14.3]} 8... O-O {[%clk 0:02:32.8]} 9. O-O {[%clk 0:02:08.8]} 9... Nbd7
{[%clk 0:02:24.8]} 10. Qd2 {[%clk 0:01:58.7]} 10... Ne5 {[%clk 0:02:22.1]} 11.
b3 {[%clk 0:01:56.7]} 11... Rb8 {[%clk 0:02:09.1]} 12. Rac1 {[%clk 0:01:52.2]}
12... Bd7 {[%clk 0:02:05.5]} 13. Rfd1 {[%clk 0:01:49.7]} 13... Nc6 {[%clk
0:02:04.1]} 14. Nc2 {[%clk 0:01:41.2]} 14... Re8 {[%clk 0:01:55.3]} 15. Ne3
{[%clk 0:01:34.5]} 15... Ng4 {[%clk 0:01:45]} 16. Ned5 {[%clk 0:01:19.6]} 16...
Be6 {[%clk 0:01:11.8]} 17. Ne4 {[%clk 0:01:09.3]} 17... Nge5 {[%clk 0:00:50.5]}
18. Nf4 {[%clk 0:00:38.6]} 18... Bf5 {[%clk 0:00:47.2]} 19. Qe3 {[%clk
0:00:29.2]} 19... Ng4 {[%clk 0:00:45.4]} 20. Qd2 {[%clk 0:00:24.1]} 20... f6
{[%clk 0:00:37.8]} 21. Bh4 {[%clk 0:00:24.3]} 21... g5 {[%clk 0:00:32.1]} 22.
Nxg5 {[%clk 0:00:18.7]} 22... fxg5 {[%clk 0:00:33]} 23. Bxg5 {[%clk 0:00:19.6]}
23... Nf6 {[%clk 0:00:25.8]} 24. Bxf6 {[%clk 0:00:16.2]} 24... Bxf6 {[%clk
0:00:22.3]} 25. Nxh5 {[%clk 0:00:16.2]} 25... Bg6 {[%clk 0:00:20.3]} 26. Qh6
{[%clk 0:00:14.3]} 26... Bxh5 {[%clk 0:00:19.1]} 27. Qxh5 {[%clk 0:00:15.2]}
27... Bg7 {[%clk 0:00:18.4]} 28. Qg6 {[%clk 0:00:14.4]} 28... e6 {[%clk
0:00:18.5]} 29. c5 {[%clk 0:00:13.3]} 29... d5 {[%clk 0:00:18.4]} 30. e4 {[%clk
0:00:13.8]} 30... Qf6 {[%clk 0:00:18.4]} 31. Qxf6 {[%clk 0:00:13.7]} 31... Bxf6
{[%clk 0:00:19.3]} 32. exd5 {[%clk 0:00:14.6]} 32... exd5 {[%clk 0:00:20]} 33.
Bxd5+ {[%clk 0:00:15.5]} 33... Kg7 {[%clk 0:00:20.5]} 34. Kg2 {[%clk 0:00:13.5]}
34... Rbc8 {[%clk 0:00:20.5]} 35. Rc4 {[%clk 0:00:08.9]} 35... Re7 {[%clk
0:00:21]} 36. Rg4+ {[%clk 0:00:09]} 36... Kh7 {[%clk 0:00:20.7]} 37. Be4+ {[%clk
0:00:09.2]} 37... Kh8 {[%clk 0:00:20]} 38. Bf5 {[%clk 0:00:09.8]} 38... Rd8
{[%clk 0:00:19]} 39. Rd6 {[%clk 0:00:10.1]} 39... Bg7 {[%clk 0:00:17.4]} 40.
Rh4+ {[%clk 0:00:09.4]} 40... Kg8 {[%clk 0:00:17.2]} 41. Be6+ {[%clk 0:00:09.9]}
41... Kf8 {[%clk 0:00:16.8]} 42. Rf4+ {[%clk 0:00:10.5]} 42... Ke8 {[%clk
0:00:16.5]} 43. Bg4 {[%clk 0:00:10.5]} 43... Rxd6 {[%clk 0:00:15.6]} 44. cxd6
{[%clk 0:00:11.4]} 44... Re5 {[%clk 0:00:15.3]} 45. Bh5+ {[%clk 0:00:09.9]}
45... Kd8 {[%clk 0:00:14.6]} 46. Bg4 {[%clk 0:00:09.5]} 46... Rd5 {[%clk
0:00:13.9]} 47. Rf7 {[%clk 0:00:10]} 47... Bh6 {[%clk 0:00:13.7]} 48. Rf6 {[%clk
0:00:10.4]} 48... Bg7 {[%clk 0:00:13.2]} 49. Rg6 {[%clk 0:00:10.5]} 49... Bf8
{[%clk 0:00:13.2]} 50. Rg8 {[%clk 0:00:11.1]} 50... Ke8 {[%clk 0:00:13.7]} 51.
Bh5+ {[%clk 0:00:11.7]} 51... Kd7 {[%clk 0:00:13.7]} 52. Bg4+ {[%clk 0:00:11]}
52... Kxd6 {[%clk 0:00:12.8]} 53. Rxf8 {[%clk 0:00:11.3]} 53... Rd2 {[%clk
0:00:13.3]} 54. a3 {[%clk 0:00:11.6]} 54... Kc7 {[%clk 0:00:13.3]} 55. Rf3
{[%clk 0:00:11.8]} 55... Ne5 {[%clk 0:00:13.3]} 56. Rc3+ {[%clk 0:00:12.2]}
56... Kb6 {[%clk 0:00:13.1]} 57. Bf5 {[%clk 0:00:12.7]} 57... Ra2 {[%clk
0:00:12.1]} 58. a4 {[%clk 0:00:12.8]} 58... a5 {[%clk 0:00:12.5]} 59. h4 {[%clk
0:00:13.2]} 59... Nc6 {[%clk 0:00:12.9]} 60. h5 {[%clk 0:00:13.1]} 60... Nd4
{[%clk 0:00:13.5]} 61. Be4 {[%clk 0:00:13.7]} 61... Ne2 {[%clk 0:00:13]} 62. Re3
{[%clk 0:00:13.7]} 62... Nd4 {[%clk 0:00:13]} 63. h6 {[%clk 0:00:14.3]} 63...
Nc2 {[%clk 0:00:05.1]} 64. Bxc2 {[%clk 0:00:14.3]} 64... Rxc2 {[%clk 0:00:06]}
65. Re6+ {[%clk 0:00:14.3]} 65... Ka7 {[%clk 0:00:03.7]} 66. Re8 {[%clk
0:00:14.6]} 66... Rc7 {[%clk 0:00:03.5]} 67. g4 {[%clk 0:00:15.2]} 67... Kb6
{[%clk 0:00:03]} 68. g5 {[%clk 0:00:15.4]} 68... Rh7 {[%clk 0:00:03.4]} 69. Kg3
{[%clk 0:00:14]} 69... Kc5 {[%clk 0:00:04]} 70. Re4 {[%clk 0:00:12.8]} 70... b5
{[%clk 0:00:03]} 71. axb5 {[%clk 0:00:12.7]} 71... Kxb5 {[%clk 0:00:03.9]} 72.
Kg4 {[%clk 0:00:13.1]} 72... Rd7 {[%clk 0:00:03.9]} 73. g6 {[%clk 0:00:13.2]}
73... Rd6 {[%clk 0:00:04.1]} 74. Kg5 {[%clk 0:00:13.8]} 74... Rd5+ {[%clk
0:00:04.1]} 75. Kf6 {[%clk 0:00:14.4]} 75... Rd6+ {[%clk 0:00:04.6]} 76. Re6
{[%clk 0:00:14.7]} 76... Rd2 {[%clk 0:00:04]} 77. f4 {[%clk 0:00:15.2]} 77...
Rf2 {[%clk 0:00:03.5]} 78. f5 {[%clk 0:00:15.5]} 78... Kb4 {[%clk 0:00:04.4]}
79. Rb6+ {[%clk 0:00:16]} 79... Kc3 {[%clk 0:00:04.2]} 80. Rb8 {[%clk
0:00:16.7]} 80... Kb2 {[%clk 0:00:03.5]} 81. h7 {[%clk 0:00:17.2]} 81... Rh2
{[%clk 0:00:03.6]} 82. h8=Q {[%clk 0:00:17.4]} 82... Rxh8 {[%clk 0:00:04.5]} 83.
Rxh8 {[%clk 0:00:17.8]} 83... a4 {[%clk 0:00:05.4]} 84. g7 {[%clk 0:00:18.7]}
84... a3 {[%clk 0:00:06.3]} 85. g8=Q {[%clk 0:00:19.6]} 85... a2 {[%clk
0:00:06.5]} 86. Qg2+ {[%clk 0:00:20.5]} 86... Ka3 {[%clk 0:00:07]} 87. Ra8+
{[%clk 0:00:20.8]} 87... Kb4 {[%clk 0:00:07.3]} 88. Qd2+ {[%clk 0:00:21.5]}
88... Kb5 {[%clk 0:00:07.1]} 89. Ra5+ {[%clk 0:00:21.9]} 89... Kc6 {[%clk
0:00:07.7]} 90. Qd5+ {[%clk 0:00:22.2]} 90... Kc7 {[%clk 0:00:08]} 91. Ra7+
{[%clk 0:00:22.2]} 91... Kb8 {[%clk 0:00:08.9]} 92. Qb7# {[%clk 0:00:22]} 1-0

[Event "*** Titled Tuesday Blitz"]
[Site "Chess.com"]
[Date "2021.02.09"]
[Round "8"]
[White "MaevskiyNikolay"]
[Black "pavelalexandru07"]
[Result "0-1"]
[WhiteElo "2509"]
[BlackElo "2356"]
[TimeControl "180+1"]
[EndTime "11:31:24 PST"]
[Termination "pavelalexandru07 won by checkmate"]

1. e4 {[%clk 0:02:59.4]} 1... c5 {[%clk 0:02:58.5]} 2. Nf3 {[%clk 0:02:57.7]}
2... d6 {[%clk 0:02:53.4]} 3. d4 {[%clk 0:02:55.6]} 3... cxd4 {[%clk 0:02:51.1]}
4. Nxd4 {[%clk 0:02:56.5]} 4... Nf6 {[%clk 0:02:50.4]} 5. Nc3 {[%clk 0:02:56.8]}
5... a6 {[%clk 0:02:49.4]} 6. Bg5 {[%clk 0:02:57]} 6... Nbd7 {[%clk 0:02:46.3]}
7. Bc4 {[%clk 0:02:54.3]} 7... Qb6 {[%clk 0:02:44]} 8. Bb3 {[%clk 0:02:52.5]}
8... e6 {[%clk 0:02:42.7]} 9. O-O {[%clk 0:02:51.1]} 9... Be7 {[%clk 0:02:42.2]}
10. Be3 {[%clk 0:02:48.7]} 10... Nc5 {[%clk 0:02:35.1]} 11. Na4 {[%clk
0:02:43.5]} 11... Qc7 {[%clk 0:02:34.3]} 12. f3 {[%clk 0:02:39.1]} 12... Bd7
{[%clk 0:02:26.6]} 13. Nc3 {[%clk 0:02:38.7]} 13... Rc8 {[%clk 0:02:23.4]} 14.
Kh1 {[%clk 0:02:37.6]} 14... O-O {[%clk 0:02:18.8]} 15. a4 {[%clk 0:02:36.6]}
15... Rfd8 {[%clk 0:01:59.9]} 16. Bg5 {[%clk 0:02:33.4]} 16... h6 {[%clk
0:01:52.3]} 17. Bh4 {[%clk 0:02:32.9]} 17... Re8 {[%clk 0:01:49.1]} 18. a5
{[%clk 0:02:17.9]} 18... Nfxe4 {[%clk 0:01:29.8]} 19. Nxe4 {[%clk 0:01:51.8]}
19... Bxh4 {[%clk 0:01:24.2]} 20. Nxc5 {[%clk 0:01:44]} 20... Qxc5 {[%clk
0:01:07]} 21. c3 {[%clk 0:01:40.6]} 21... d5 {[%clk 0:01:05.5]} 22. Bc2 {[%clk
0:01:38.6]} 22... Bf6 {[%clk 0:01:04.8]} 23. Ne2 {[%clk 0:01:27.2]} 23... Bb5
{[%clk 0:01:04.1]} 24. Qd2 {[%clk 0:01:24.6]} 24... d4 {[%clk 0:00:58.9]} 25.
Be4 {[%clk 0:01:16.6]} 25... dxc3 {[%clk 0:00:53.3]} 26. bxc3 {[%clk 0:01:09]}
26... Red8 {[%clk 0:00:45]} 27. Qe1 {[%clk 0:01:01.3]} 27... Bxc3 {[%clk
0:00:37]} 28. Nxc3 {[%clk 0:00:56.8]} 28... Qxc3 {[%clk 0:00:34.5]} 29. Qxc3
{[%clk 0:00:55.9]} 29... Rxc3 {[%clk 0:00:33.9]} 30. Rfd1 {[%clk 0:00:47.2]}
30... Rxd1+ {[%clk 0:00:33.3]} 31. Rxd1 {[%clk 0:00:46.7]} 31... g6 {[%clk
0:00:22.5]} 32. Bxb7 {[%clk 0:00:45.2]} 32... Ra3 {[%clk 0:00:19.4]} 33. h4
{[%clk 0:00:43.5]} 33... h5 {[%clk 0:00:17]} 34. Kh2 {[%clk 0:00:42.7]} 34...
Rxa5 {[%clk 0:00:16.6]} 35. Rd6 {[%clk 0:00:40.5]} 35... Ra2 {[%clk 0:00:14.8]}
36. Kg1 {[%clk 0:00:35.1]} 36... a5 {[%clk 0:00:13.2]} 37. Rb6 {[%clk 0:00:32]}
37... Bc4 {[%clk 0:00:12.7]} 38. Ba6 {[%clk 0:00:29.4]} 38... Bxa6 {[%clk
0:00:12]} 39. Rxa6 {[%clk 0:00:29.1]} 39... Kg7 {[%clk 0:00:12.7]} 40. Kh2
{[%clk 0:00:26.7]} 40... Kf6 {[%clk 0:00:13]} 41. Kg3 {[%clk 0:00:26.7]} 41...
a4 {[%clk 0:00:12.6]} 42. Ra7 {[%clk 0:00:26.6]} 42... Ra1 {[%clk 0:00:10.5]}
43. Kf4 {[%clk 0:00:26.8]} 43... a3 {[%clk 0:00:09]} 44. Kg3 {[%clk 0:00:25.2]}
44... Kg7 {[%clk 0:00:06.7]} 45. Kf4 {[%clk 0:00:24.9]} 45... a2 {[%clk
0:00:06.8]} 46. Kg3 {[%clk 0:00:24.7]} 46... Kf6 {[%clk 0:00:06.9]} 47. Kh2
{[%clk 0:00:19.9]} 47... Ke5 {[%clk 0:00:06.7]} 48. Ra5+ {[%clk 0:00:18.1]}
48... Kd4 {[%clk 0:00:06.9]} 49. Ra4+ {[%clk 0:00:18.1]} 49... Kc3 {[%clk
0:00:07.1]} 50. Ra7 {[%clk 0:00:17.4]} 50... Kd3 {[%clk 0:00:06.9]} 51. Ra3+
{[%clk 0:00:16.3]} 51... Kd4 {[%clk 0:00:06.9]} 52. Ra7 {[%clk 0:00:16.1]} 52...
Ke5 {[%clk 0:00:04.9]} 53. Kg3 {[%clk 0:00:15.7]} 53... Kf5 {[%clk 0:00:04.9]}
54. Ra5+ {[%clk 0:00:15.6]} 54... e5 {[%clk 0:00:04.8]} 55. Ra4 {[%clk 0:00:15]}
55... f6 {[%clk 0:00:04.4]} 56. Kh2 {[%clk 0:00:14.7]} 56... Ke6 {[%clk
0:00:02.9]} 57. Ra6+ {[%clk 0:00:14]} 57... Kf7 {[%clk 0:00:03.6]} 58. Kg3
{[%clk 0:00:14.1]} 58... f5 {[%clk 0:00:03.8]} 59. Ra5 {[%clk 0:00:13.6]} 59...
Kf6 {[%clk 0:00:04.1]} 60. Ra6+ {[%clk 0:00:13.6]} 60... Kg7 {[%clk 0:00:04.6]}
61. Ra7+ {[%clk 0:00:13.8]} 61... Kh6 {[%clk 0:00:04.1]} 62. Ra5 {[%clk
0:00:13.7]} 62... e4 {[%clk 0:00:04.6]} 63. fxe4 {[%clk 0:00:13.7]} 63... fxe4
{[%clk 0:00:05.1]} 64. Ra3 {[%clk 0:00:13.3]} 64... e3 {[%clk 0:00:04.9]} 65.
Kf3 {[%clk 0:00:12.4]} 65... e2 {[%clk 0:00:04.8]} 66. Kxe2 {[%clk 0:00:12.5]}
66... Rg1 {[%clk 0:00:03.8]} 67. Kf3 {[%clk 0:00:08.8]} 67... a1=Q {[%clk
0:00:03.7]} 68. Re3 {[%clk 0:00:09.3]} 68... Rf1+ {[%clk 0:00:04.1]} 69. Kg3
{[%clk 0:00:09.5]} 69... Qd4 {[%clk 0:00:04.2]} 70. Re2 {[%clk 0:00:09.4]} 70...
Qd3+ {[%clk 0:00:04.4]} 71. Kh2 {[%clk 0:00:09.3]} 71... Qxe2 {[%clk 0:00:04.7]}
72. Kh3 {[%clk 0:00:09.3]} 72... Rf3+ {[%clk 0:00:04.7]} 73. Kh2 {[%clk
0:00:09]} 73... Rf2 {[%clk 0:00:04.9]} 74. Kh3 {[%clk 0:00:09.3]} 74... Qe3+
{[%clk 0:00:04.4]} 75. g3 {[%clk 0:00:08.5]} 75... Rh2+ {[%clk 0:00:04]} 76.
Kxh2 {[%clk 0:00:08.3]} 76... g5 {[%clk 0:00:03.8]} 77. Kg2 {[%clk 0:00:06.8]}
77... gxh4 {[%clk 0:00:03.7]} 78. gxh4 {[%clk 0:00:06.9]} 78... Qe2+ {[%clk
0:00:04]} 79. Kh3 {[%clk 0:00:06.5]} 79... Qg4+ {[%clk 0:00:04.6]} 80. Kh2
{[%clk 0:00:06.4]} 80... Qxh4+ {[%clk 0:00:05]} 81. Kg2 {[%clk 0:00:06.7]} 81...
Qg4+ {[%clk 0:00:05.6]} 82. Kh2 {[%clk 0:00:07.1]} 82... h4 {[%clk 0:00:06.3]}
83. Kh1 {[%clk 0:00:07.7]} 83... Kg5 {[%clk 0:00:06.7]} 84. Kh2 {[%clk
0:00:07.9]} 84... Kf4 {[%clk 0:00:07.2]} 85. Kh1 {[%clk 0:00:08.2]} 85... Kf3
{[%clk 0:00:08.1]} 86. Kh2 {[%clk 0:00:08.6]} 86... Qg2# {[%clk 0:00:09]} 0-1